bitfinex/quotes_SOLUSD_20241022
["timestamp","ask_amount","ask_price","bid_price","bid_amount"]
[1729631717241,0.1,167.54,167.49,0.6180154]
[1729631718036,0.2,167.54,167.49,0.6180154]
[1729631718237,0.1,167.53,167.49,0.6180154]
[1729631719039,0.2,167.52,167.49,0.6180154]
[1729631719342,0.2,167.5,167.49,0.6180154]
[1729631723146,0.1,167.5,167.49,0.6180154]
[1729631725457,0.2,167.5,167.49,0.6180154]
[1729631735176,0.2,167.5,167.41,13.46965713]
[1729631735378,43.776884,167.51,167.36,22.3286]
[1729631735379,0.2,167.42,167.36,22.3286]
[1729631735586,0.2,167.39,167.32,23.58138656]
[1729631735789,0.1,167.38,167.32,23.58138656]
[1729631736083,0.1,167.38,167.32,16.3201154]
[1729631737259,0.1,167.36,167.32,0.6180154]
[1729631737460,0.1,167.38,167.32,0.6180154]
[1729631737660,0.1,167.36,167.32,0.6180154]
[1729631738179,0.2,167.36,167.32,0.6180154]
[1729631738387,0.1,167.37,167.32,0.6180154]
[1729631738566,0.2,167.38,167.32,0.6180154]
[1729631739475,0.1,167.37,167.32,0.6180154]
[1729631739866,0.2,167.38,167.32,0.6180154]
[1729631740483,0.1,167.37,167.32,0.6180154]
[1729631741070,0.2,167.38,167.32,0.6180154]
[1729631741273,0.1,167.37,167.32,0.6180154]
[1729631744064,0.2,167.38,167.32,0.6180154]
[1729631744266,0.1,167.36,167.32,0.6180154]
[1729631744560,0.1,167.37,167.32,0.6180154]
[1729631744779,0.1,167.36,167.32,0.6180154]
[1729631745268,0.2,167.35,167.32,0.6180154]
[1729631745681,0.1,167.35,167.32,0.6180154]
[1729631746379,0.2,167.35,167.32,0.6180154]
[1729631746793,0.1,167.35,167.32,0.6180154]
[1729631747286,0.2,167.36,167.32,0.6180154]
[1729631747968,0.1,167.35,167.32,0.6180154]
[1729631748302,0.2,167.36,167.32,0.6180154]
[1729631748488,0.1,167.35,167.32,0.6180154]
[1729631748666,0.1,167.37,167.32,0.6180154]
[1729631753191,0.2,167.36,167.32,0.6180154]
[1729631753390,0.1,167.36,167.32,0.6180154]
[1729631753970,0.2,167.37,167.32,0.6180154]
[1729631756086,0.1,167.37,167.32,0.6180154]
[1729631756674,0.2,167.39,167.33,23.776884]
[1729631757886,0.1,167.39,167.33,23.776884]
[1729631758071,0.2,167.39,167.33,23.776884]
[1729631758687,0.1,167.39,167.33,23.776884]
[1729631759185,0.2,167.39,167.33,23.776884]
[1729631760387,0.1,167.39,167.33,23.776884]
[1729631760592,0.1,167.4,167.33,39.144784]
[1729631760977,0.1,167.41,167.33,39.144784]
[1729631761369,0.2,167.42,167.33,39.144784]
[1729631761574,0.1,167.42,167.33,109.144784]
[1729631761770,0.1,167.39,167.32,7.1536154]
[1729631761966,0.2,167.39,167.32,7.1536154]
[1729631762195,0.2,167.38,167.32,7.1536154]
[1729631763381,0.1,167.39,167.33,23.776884]
[1729631763884,0.1,167.4,167.33,23.776884]
[1729631765599,0.1,167.4,167.32,77.1536154]
[1729631765600,0.1,167.43,167.35,23.776884]
[1729631767098,0.1,167.44,167.35,23.776884]
[1729631768187,0.1,167.45,167.37,70.0]
[1729631768391,0.1,167.47,167.38,23.776884]
[1729631768774,0.2,167.49,167.38,23.776884]
[1729631769100,0.1,167.48,167.38,23.776884]
[1729631769281,0.1,167.49,167.42,23.776884]
[1729631769801,0.1,167.49,167.42,29.936584]
[1729631791318,0.1,167.5,167.42,29.936584]
[1729631791523,0.1,167.49,167.42,29.936584]
[1729631796622,0.1,167.5,167.42,29.936584]
[1729631796933,0.1,167.49,167.42,29.936584]
[1729631798310,0.1,167.5,167.42,29.936584]
[1729631799126,0.1,167.48,167.42,29.936584]
[1729631799332,0.1,167.47,167.42,29.936584]
[1729631799913,0.1,167.5,167.42,29.936584]
[1729631800110,0.1,167.49,167.42,29.936584]
[1729631800312,0.1,167.5,167.42,29.936584]
[1729631800727,0.1,167.49,167.42,29.936584]
[1729631800930,0.2,167.5,167.42,29.936584]
[1729631801533,0.1,167.49,167.42,29.936584]
[1729631801842,0.1,167.5,167.42,29.936584]
[1729631802847,0.1,167.49,167.42,29.936584]
[1729631804327,0.1,167.5,167.48,10.95239463]
[1729631804527,0.1,167.5,167.44,43.80957852]
[1729631804528,0.1,167.5,167.49,10.95239463]
[1729631805727,0.2,167.5,167.49,10.95239463]
[1729631806422,0.1,167.5,167.49,10.95239463]
[1729631812846,0.1,167.51,167.49,10.95239463]
[1729631813146,0.1,167.51,167.5,10.95239463]
[1729631813548,0.2,167.51,167.5,10.95239463]
[1729631813745,0.1,167.51,167.5,10.95239463]
[1729631814826,0.2,167.51,167.5,10.95239463]
[1729631815028,0.1,167.51,167.5,10.95239463]
[1729631817243,0.1,167.52,167.5,10.95239463]
[1729631817550,0.2,167.53,167.51,10.95239463]
[1729631817855,0.2,167.53,167.52,10.95239463]
[1729631818032,4.63510475,167.53,167.52,10.95239463]
[1729631818852,4.63499018,167.53,167.52,10.95239463]
[1729631819537,0.1,167.49,167.44,43.80957852]
[1729631819853,0.1,167.5,167.48,10.95239463]
[1729631820152,0.1,167.5,167.49,10.95239463]
[1729631820355,0.1,167.51,167.49,10.95239463]
[1729631820654,0.1,167.51,167.5,10.95239463]
[1729631824846,0.1,167.52,167.5,10.95239463]
[1729631825054,0.1,167.51,167.44,43.80957852]
[1729631825243,0.1,167.51,167.5,10.95239463]
[1729631825647,0.1,167.52,167.5,10.95239463]
[1729631825848,0.1,167.52,167.51,10.95239463]
[1729631826163,4.6339894,167.52,167.51,10.95239463]
[1729631830035,4.5339894,167.52,167.51,10.95239463]
[1729631830231,4.6339894,167.52,167.51,10.95239463]
[1729631830439,0.2,167.53,167.51,10.95239463]
[1729631830749,0.1,167.53,167.52,10.95239463]
[1729631831750,0.2,167.54,167.52,10.95239463]
[1729631831966,0.2,167.54,167.53,10.95239463]
[1729631832654,0.1,167.54,167.53,10.95239463]
[1729631834055,0.2,167.54,167.53,10.95239463]
[1729631834960,0.1,167.54,167.53,10.95239463]
[1729631836942,15.7763,167.58,167.53,10.95239463]
[1729631837144,11.52199673,167.57,167.54,10.95239463]
[1729631837364,4.4315372,167.56,167.55,10.95239463]
[1729631838466,4.4315372,167.56,167.54,10.95239463]
[1729631838668,4.4315372,167.55,167.54,10.95239463]
[1729631840041,15.7763,167.58,167.54,10.95239463]
[1729631840243,4.43046964,167.57,167.56,10.95239463]
[1729631842368,6.1954,167.61,167.56,10.95239463]
[1729631842568,11.51463515,167.6,167.57,10.95239463]
[1729631842739,4.42870583,167.59,167.57,10.95239463]
[1729631843057,20.0,167.61,167.57,10.95239463]
[1729631843265,4.42931921,167.6,167.57,10.95239463]
[1729631843452,4.42931921,167.59,167.57,10.95239463]
[1729631843655,20.0,167.61,167.57,10.95239463]
[1729631843847,4.42802299,167.6,167.57,10.95239463]
[1729631844043,15.5206,167.62,167.58,10.95239463]
[1729631844255,11.51305574,167.61,167.58,10.95239463]
[1729631844763,15.5206,167.62,167.58,10.95239463]
[1729631844764,4.42809836,167.6,167.58,10.95239463]
[1729631844965,15.5206,167.62,167.58,10.95239463]
[1729631845148,4.42675519,167.61,167.58,10.95239463]
[1729631845347,4.42675519,167.6,167.58,10.95239463]
[1729631845669,15.5206,167.62,167.58,10.95239463]
[1729631845871,4.42552796,167.61,167.58,10.95239463]
[1729631846049,4.42552796,167.6,167.58,10.95239463]
[1729631846368,15.5206,167.62,167.58,10.95239463]
[1729631846565,4.42462243,167.61,167.58,10.95239463]
[1729631846767,15.5206,167.62,167.58,10.95239463]
[1729631846970,4.42463768,167.61,167.58,10.95239463]
[1729631847263,15.5206,167.62,167.59,10.95239463]
[1729631847564,15.5206,167.62,167.6,10.95239463]
[1729631847565,4.4238645,167.61,167.6,10.95239463]
[1729631848647,4.4238645,167.61,167.59,10.95239463]
[1729631848845,6.3571,167.65,167.6,10.95239463]
[1729631849046,11.50317807,167.64,167.6,10.95239463]
[1729631849260,4.42429926,167.63,167.6,10.95239463]
[1729631849456,44.9271846,167.66,167.6,10.95239463]
[1729631849660,11.49999284,167.65,167.6,10.95239463]
[1729631849871,11.49999284,167.64,167.6,10.95239463]
[1729631850074,4.42307417,167.63,167.6,10.95239463]
[1729631850269,44.9271846,167.66,167.6,10.95239463]
[1729631850566,11.49707294,167.65,167.6,10.95239463]
[1729631850746,4.42195113,167.64,167.6,10.95239463]
[1729631850952,4.42195113,167.63,167.6,10.95239463]
[1729631851163,44.9271846,167.66,167.6,10.95239463]
[1729631851473,4.42207108,167.65,167.6,10.95239463]
[1729631851663,4.42207108,167.64,167.6,10.95239463]
[1729631851866,44.9271846,167.66,167.6,10.95239463]
[1729631852182,4.42083814,167.65,167.6,10.95239463]
[1729631852472,4.42083814,167.64,167.6,10.95239463]
[1729631852658,44.9271846,167.66,167.6,10.95239463]
[1729631852855,4.41966991,167.65,167.6,10.95239463]
[1729631853174,4.41966991,167.64,167.6,10.95239463]
[1729631853476,44.9271846,167.66,167.6,10.95239463]
[1729631853671,4.41873639,167.65,167.6,10.95239463]
[1729631853974,44.9271846,167.66,167.6,10.95239463]
[1729631854173,4.41891375,167.65,167.6,10.95239463]
[1729631854467,44.9271846,167.66,167.6,10.95239463]
[1729631854773,4.41790753,167.65,167.6,10.95239463]
[1729631855066,44.9271846,167.66,167.61,10.95239463]
[1729631859151,44.9271846,167.66,167.61,8.77475863]
[1729631863082,44.9271846,167.66,167.62,10.95239463]
[1729631865980,29.3819846,167.66,167.63,10.95239463]
[1729631866874,29.3819846,167.66,167.64,10.95239463]
[1729631875696,29.3819846,167.66,167.65,10.95239463]
[1729631889400,21.6618,167.76,167.65,78.53885715]
[1729631889593,4.41893304,167.75,167.72,10.95239463]
[1729631889793,4.41893304,167.74,167.72,10.95239463]
[1729631890005,21.6618,167.76,167.72,10.95239463]
[1729631890208,4.4192555,167.75,167.72,10.95239463]
[1729631890390,4.4192555,167.74,167.72,10.95239463]
[1729631890710,21.6618,167.76,167.72,10.95239463]
[1729631890907,4.41847714,167.75,167.72,10.95239463]
[1729631891110,4.41847714,167.74,167.72,10.95239463]
[1729631891318,21.6618,167.76,167.72,10.95239463]
[1729631891615,4.41843258,167.75,167.72,10.95239463]
[1729631891911,4.41843258,167.74,167.72,10.95239463]
[1729631892116,21.6618,167.76,167.72,10.95239463]
[1729631892309,4.4182546,167.75,167.71,10.95239463]
[1729631892510,4.4182546,167.74,167.71,10.95239463]
[1729631892690,21.6618,167.76,167.71,10.95239463]
[1729631893092,4.41859369,167.75,167.71,10.95239463]
[1729631893300,21.6618,167.76,167.71,10.95239463]
[1729631893301,4.41859369,167.74,167.71,10.95239463]
[1729631893588,5.9638,167.68,167.65,14.59260258]
[1729631893896,5.9633,167.7,167.65,14.59260258]
[1729631894103,4.41755805,167.69,167.65,14.59260258]
[1729631894396,5.9633,167.7,167.65,14.59260258]
[1729631894601,5.9633,167.7,167.64,10.95239463]
[1729631894602,4.41848716,167.69,167.64,10.95239463]
[1729631899390,11.49485855,167.69,167.64,10.95239463]
[1729631904902,4.42495522,167.68,167.64,10.95239463]
[1729631905104,5.9633,167.7,167.64,10.95239463]
[1729631905305,11.50477835,167.69,167.64,21.88814734]
[1729631905626,4.42491475,167.68,167.64,21.88814734]
[1729631905805,4.42491475,167.67,167.64,21.88814734]
[1729631906006,5.9633,167.7,167.64,21.88814734]
[1729631906322,11.50591305,167.69,167.64,21.88814734]
[1729631906502,4.42535117,167.68,167.64,21.88814734]
[1729631906820,4.42535117,167.67,167.64,21.88814734]
[1729631907020,5.9633,167.7,167.64,21.88814734]
[1729631907208,11.50673858,167.69,167.64,21.88814734]
[1729631907411,4.42566868,167.68,167.64,21.88814734]
[1729631907612,4.42566868,167.67,167.64,21.88814734]
[1729631907816,5.9633,167.7,167.64,21.88814734]
[1729631908002,11.50836861,167.69,167.64,21.88814734]
[1729631911024,27.51256861,167.69,167.58,16.0848]
[1729631911236,27.51256861,167.69,167.61,21.88814734]
[1729631911237,5.9637,167.68,167.61,21.88814734]
[1729631911404,17.47440557,167.68,167.61,21.88814734]
[1729631911603,10.39089445,167.68,167.61,21.88814734]
[1729631911903,4.42719445,167.67,167.61,21.88814734]
[1729631912224,4.42719445,167.67,167.62,21.88814734]
[1729631913527,4.42719445,167.67,167.63,21.88814734]
[1729631919517,4.42719445,167.67,167.62,21.88814734]
[1729631924927,4.42719445,167.66,167.62,21.88814734]
[1729631925239,21.9676,167.69,167.62,21.88814734]
[1729631925426,11.51079564,167.68,167.62,21.88814734]
[1729631925628,4.42722909,167.67,167.62,21.88814734]
[1729631925824,21.9676,167.69,167.62,21.88814734]
[1729631926019,11.51040025,167.68,167.62,21.88814734]
[1729631926221,21.9676,167.69,167.62,21.88814734]
[1729631926421,7.08332468,167.68,167.62,21.88814734]
[1729631926623,4.42707684,167.67,167.62,21.88814734]
[1729631926926,4.42707684,167.66,167.62,21.88814734]
[1729631927139,21.9676,167.69,167.62,21.88814734]
[1729631927341,11.51063435,167.68,167.62,21.88814734]
[1729631927527,4.42716706,167.67,167.62,21.88814734]
[1729631927730,4.42716706,167.66,167.62,21.88814734]
[1729631928039,21.9676,167.69,167.62,21.88814734]
[1729631928338,11.51057024,167.68,167.62,21.88814734]
[1729631928544,4.4271424,167.67,167.62,21.88814734]
[1729631928744,4.4271424,167.66,167.62,21.88814734]
[1729631928916,21.9676,167.69,167.62,21.88814734]
[1729631929111,11.51078097,167.68,167.62,21.88814734]
[1729631929340,4.42722345,167.67,167.62,21.88814734]
[1729631929540,4.42722345,167.66,167.62,21.88814734]
[1729631929747,11.51105798,167.68,167.62,21.88814734]
[1729631929939,4.42739829,167.67,167.62,21.88814734]
[1729631930153,4.42739829,167.66,167.61,21.88814734]
[1729631930316,25.9637,167.68,167.61,21.88814734]
[1729631930523,4.42748775,167.67,167.61,21.88814734]
[1729631930717,4.42748775,167.66,167.61,21.88814734]
[1729631930914,25.9637,167.68,167.61,21.88814734]
[1729631931117,4.42750382,167.67,167.61,21.88814734]
[1729631931335,4.42750382,167.66,167.61,21.88814734]
[1729631931547,25.9637,167.68,167.61,21.88814734]
[1729631931717,4.42762789,167.67,167.61,21.88814734]
[1729631931923,4.42762789,167.66,167.61,21.88814734]
[1729631932122,0.1,167.67,167.58,16.0848]
[1729631932428,5.9648,167.65,167.58,21.88814734]
[1729631932617,4.4276393,167.64,167.58,21.88814734]
[1729631932815,20.1,167.66,167.57,21.88814734]
[1729631933013,20.0,167.64,167.57,21.88814734]
[1729631933217,10.39219797,167.63,167.57,21.88814734]
[1729631933438,4.42659797,167.62,167.57,21.88814734]
[1729631933644,5.9656,167.63,167.57,21.88814734]
[1729631933823,4.42540891,167.62,167.57,21.88814734]
[1729631934021,20.0,167.63,167.57,21.88814734]
[1729631934231,4.42541938,167.62,167.57,21.88814734]
[1729631934432,20.0,167.63,167.57,21.88814734]
[1729631934635,4.42469872,167.62,167.57,21.88814734]
[1729631934941,20.0,167.63,167.57,21.88814734]
[1729631935142,4.42468341,167.62,167.57,21.88814734]
[1729631935353,20.0,167.63,167.57,21.88814734]
[1729631935642,4.42405233,167.62,167.57,21.88814734]
[1729631935841,20.0,167.63,167.56,21.88814734]
[1729631936045,4.42406733,167.62,167.56,21.88814734]
[1729631936227,5.9655,167.63,167.56,21.88814734]
[1729631936428,4.42453886,167.62,167.56,21.88814734]
[1729631936734,5.9655,167.63,167.57,21.88814734]
[1729631937043,4.42455691,167.62,167.57,21.88814734]
[1729631937240,5.9655,167.63,167.57,21.88814734]
[1729631937439,4.42545288,167.62,167.57,21.88814734]
[1729631937623,5.9655,167.63,167.57,21.88814734]
[1729631937819,4.42548484,167.62,167.57,21.88814734]
[1729631938024,5.9655,167.63,167.54,16.2367]
[1729631938237,4.42548122,167.62,167.57,21.88814734]
[1729631938436,5.9655,167.63,167.57,21.88814734]
[1729631938639,4.42665486,167.62,167.57,21.88814734]
[1729631938837,5.9655,167.63,167.57,21.88814734]
[1729631939040,4.42664024,167.62,167.57,21.88814734]
[1729631939241,5.9655,167.63,167.57,21.88814734]
[1729631939439,4.42608711,167.62,167.57,21.88814734]
[1729631939664,5.9655,167.63,167.57,21.88814734]
[1729631939948,4.42808248,167.62,167.57,21.88814734]
[1729631940139,5.9655,167.63,167.57,21.88814734]
[1729631940341,4.42808131,167.62,167.57,21.88814734]
[1729631940535,5.9655,167.63,167.57,21.88814734]
[1729631940740,4.42807083,167.62,167.57,21.88814734]
[1729631940938,5.9655,167.63,167.57,21.88814734]
[1729631941141,4.42806856,167.62,167.57,21.88814734]
[1729631941342,5.9655,167.63,167.57,21.88814734]
[1729631941649,4.4283523,167.62,167.57,21.88814734]
[1729631941854,5.9655,167.63,167.57,21.88814734]
[1729631942045,4.42780022,167.62,167.57,21.88814734]
[1729631942229,5.9655,167.63,167.57,21.88814734]
[1729631942552,4.42734604,167.62,167.57,21.88814734]
[1729631942756,5.9655,167.63,167.57,21.88814734]
[1729631942932,4.42726915,167.62,167.57,21.88814734]
[1729631943132,5.9655,167.63,167.57,21.88814734]
[1729631943538,4.42726039,167.62,167.57,21.88814734]
[1729631943745,5.9655,167.63,167.57,21.88814734]
[1729631943940,4.42673773,167.62,167.57,21.88814734]
[1729631944149,5.9655,167.63,167.57,21.88814734]
[1729631944456,4.42639374,167.62,167.57,21.88814734]
[1729631944653,5.9655,167.63,167.57,21.88814734]
[1729631944950,4.42628574,167.62,167.57,21.88814734]
[1729631945155,5.9655,167.63,167.57,21.88814734]
[1729631945354,4.42551687,167.62,167.57,21.88814734]
[1729631945547,5.9655,167.63,167.57,21.88814734]
[1729631945753,4.42478605,167.62,167.57,21.88814734]
[1729631946063,5.9655,167.63,167.57,21.88814734]
[1729631946354,4.42471294,167.62,167.57,21.88814734]
[1729631946529,5.9655,167.63,167.57,21.88814734]
[1729631946731,4.42426245,167.62,167.57,21.88814734]
[1729631946937,5.9655,167.63,167.57,21.88814734]
[1729631947138,4.42426128,167.62,167.57,21.88814734]
[1729631947363,20.0,167.63,167.57,21.88814734]
[1729631949035,25.9655,167.63,167.57,21.88814734]
[1729631949243,20.0,167.62,167.56,21.88814734]
[1729631951549,16.2816,167.63,167.54,16.2367]
[1729631951752,24.42238416,167.62,167.53,27.92784734]
[1729631951956,20.0,167.62,167.53,27.92784734]
[1729631952340,5.9662,167.61,167.53,27.92784734]
[1729631956864,5.9662,167.61,167.54,10.95239463]
[1729631957044,5.9662,167.61,167.54,21.88814734]
[1729631957740,24.52088807,167.6,167.52,21.88814734]
[1729631957941,20.1,167.6,167.52,21.88814734]
[1729631958239,5.9672,167.59,167.52,21.88814734]
[1729631959962,5.9672,167.59,167.51,36.17751482]
[1729631962861,5.9673,167.58,167.51,14.28936748]
[1729631964062,5.9673,167.58,167.51,36.17751482]
[1729631964369,5.967,167.59,167.53,21.88814734]
[1729631970675,5.967,167.59,167.52,21.88814734]
[1729631974274,5.967,167.59,167.51,14.28936748]
[1729631974451,5.967,167.59,167.52,21.88814734]
[1729631978083,4.42218158,167.58,167.52,21.88814734]
[1729631978384,5.967,167.59,167.52,21.88814734]
[1729631978593,4.42266567,167.58,167.52,21.88814734]
[1729631978796,5.967,167.59,167.52,21.88814734]
[1729631978972,4.42274645,167.58,167.52,21.88814734]
[1729631979173,5.967,167.59,167.52,21.88814734]
[1729631979380,4.42267603,167.58,167.52,21.88814734]
[1729631979564,5.967,167.59,167.52,21.88814734]
[1729631979765,4.42268246,167.58,167.52,21.88814734]
[1729631980088,5.967,167.59,167.52,21.88814734]
[1729631980286,4.4227281,167.58,167.52,21.88814734]
[1729631980468,5.967,167.59,167.52,21.88814734]
[1729631980787,4.42272421,167.58,167.52,21.88814734]
[1729631980976,5.967,167.59,167.52,21.88814734]
[1729631981175,4.42269276,167.58,167.52,21.88814734]
[1729631981372,5.967,167.59,167.52,21.88814734]
[1729631981578,4.42266954,167.58,167.52,21.88814734]
[1729631981765,5.967,167.59,167.52,21.88814734]
[1729631981966,4.42266807,167.58,167.52,21.88814734]
[1729631982182,5.967,167.59,167.52,21.88814734]
[1729631982388,4.42270419,167.58,167.52,21.88814734]
[1729631982689,5.967,167.59,167.52,21.88814734]
[1729631982869,4.42270419,167.58,167.52,21.88814734]
[1729631983070,5.967,167.59,167.52,21.88814734]
[1729631983271,4.42270569,167.58,167.52,21.88814734]
[1729631983477,5.967,167.59,167.52,21.88814734]
[1729631983794,4.42277717,167.58,167.52,21.88814734]
[1729631984092,5.967,167.59,167.52,21.88814734]
[1729631984285,4.42279084,167.58,167.53,10.93575271]
[1729631984585,20.0,167.61,167.54,21.88814734]
[1729631984586,5.9663,167.61,167.54,21.88814734]
[1729631984779,11.49998182,167.6,167.55,21.88814734]
[1729631984976,5.9655,167.63,167.57,21.88814734]
[1729631985182,11.50169794,167.62,167.54,6.5357]
[1729631985388,4.42372998,167.61,167.57,21.88814734]
[1729631985585,5.9655,167.63,167.57,21.88814734]
[1729631985889,4.42391608,167.62,167.56,21.88814734]
[1729631986092,5.9655,167.63,167.56,21.88814734]
[1729631986274,24.42408443,167.62,167.56,21.88814734]
[1729631986597,20.0,167.62,167.56,21.88814734]
[1729631986776,20.0,167.62,167.54,6.5357]
[1729631986777,20.0,167.62,167.57,21.88814734]
[1729631988591,20.0,167.62,167.56,21.88814734]
[1729631998095,4.42450864,167.61,167.56,21.88814734]
[1729631998405,20.0,167.62,167.56,21.88814734]
[1729631998709,4.42446187,167.61,167.56,21.88814734]
[1729631999001,20.0,167.62,167.56,21.88814734]
[1729631999198,4.42444967,167.61,167.56,21.88814734]
[1729631999387,20.0,167.62,167.56,21.88814734]
[1729632000298,5.9658,167.63,167.56,21.88814734]
[1729632000490,24.4246106,167.62,167.56,21.88814734]
[1729632000698,20.0,167.62,167.56,21.88814734]
[1729632001081,20.0,167.62,167.55,21.88814734]
[1729632002892,25.9659,167.62,167.55,21.88814734]
[1729632005817,25.9659,167.62,167.56,21.88814734]
[1729632010820,25.9659,167.62,167.55,21.88814734]
[1729632015826,5.9659,167.62,167.55,21.88814734]
[1729632021809,5.9659,167.62,167.56,21.88814734]
[1729632022336,4.425732,167.61,167.56,21.88814734]
[1729632022625,5.9659,167.62,167.56,21.88814734]
[1729632022834,4.42574431,167.61,167.56,21.88814734]
[1729632023020,5.9659,167.62,167.56,21.88814734]
[1729632023216,4.42576247,167.61,167.56,21.88814734]
[1729632023527,5.9659,167.62,167.56,21.88814734]
[1729632023726,4.42625397,167.61,167.56,21.88814734]
[1729632023939,5.9659,167.62,167.56,21.88814734]
[1729632024118,4.42626343,167.61,167.56,21.88814734]
[1729632024319,5.9659,167.62,167.56,21.88814734]
[1729632024518,4.4269105,167.61,167.58,21.88814734]
[1729632024706,20.0,167.64,167.59,21.88814734]
[1729632024910,11.51021401,167.63,167.59,21.88814734]
[1729632025118,4.42700539,167.62,167.59,21.88814734]
[1729632025334,4.42700539,167.61,167.59,21.88814734]
[1729632025633,5.9649,167.65,167.59,21.88814734]
[1729632025828,11.51238268,167.64,167.59,21.88814734]
[1729632026132,11.51238268,167.63,167.59,21.88814734]
[1729632026335,4.42783949,167.62,167.59,21.88814734]
[1729632026540,4.42783949,167.61,167.59,21.88814734]
[1729632026716,5.9649,167.65,167.59,21.88814734]
[1729632026912,11.51455178,167.64,167.59,21.88814734]
[1729632027112,11.51455178,167.63,167.59,21.88814734]
[1729632027325,4.42867376,167.62,167.59,21.88814734]
[1729632027639,4.42867376,167.61,167.59,21.88814734]
[1729632027815,5.9649,167.65,167.59,21.88814734]
[1729632028015,11.51725563,167.64,167.59,21.88814734]
[1729632028219,11.51725563,167.63,167.59,21.88814734]
[1729632028419,5.9649,167.65,167.59,21.88814734]
[1729632028420,11.51725563,167.62,167.59,21.88814734]
[1729632028621,4.4297137,167.61,167.59,21.88814734]
[1729632028818,5.9649,167.65,167.59,21.88814734]
[1729632029115,11.52063789,167.64,167.59,21.88814734]
[1729632029318,11.52063789,167.63,167.59,21.88814734]
[1729632029521,5.9649,167.65,167.59,21.88814734]
[1729632029768,11.52518955,167.62,167.59,21.88814734]
[1729632029914,7.09242434,167.62,167.59,21.88814734]
[1729632030111,4.43276521,167.64,167.59,21.88814734]
[1729632030329,11.52518159,167.63,167.59,21.88814734]
[1729632030615,11.52518159,167.62,167.59,21.88814734]
[1729632030830,11.52518159,167.61,167.59,21.88814734]
[1729632031031,4.43276521,167.6,167.59,21.88814734]
[1729632037539,5.9649,167.65,167.59,21.88814734]
[1729632037845,11.5322419,167.64,167.59,21.88814734]
[1729632038044,4.43547522,167.63,167.59,21.88814734]
[1729632038244,11.5322419,167.62,167.59,21.88814734]
[1729632038417,11.5322419,167.61,167.59,21.88814734]
[1729632038624,4.43547522,167.6,167.59,21.88814734]
[1729632039019,20.0,167.66,167.59,21.88814734]
[1729632039223,11.53326869,167.65,167.61,21.88814734]
[1729632039529,11.53326869,167.64,167.61,21.88814734]
[1729632039727,11.53326869,167.63,167.61,21.88814734]
[1729632040043,11.53122048,167.62,167.61,21.88814734]
[1729632040225,4.43587257,167.62,167.61,21.88814734]
[1729632041734,4.43341862,167.62,167.61,21.88814734]
[1729632042347,20.0,167.66,167.61,21.88814734]
[1729632042523,11.52551167,167.65,167.61,21.88814734]
[1729632042722,11.52551167,167.64,167.61,21.88814734]
[1729632042918,4.4328891,167.63,167.61,21.88814734]
[1729632043139,4.4328891,167.62,167.61,21.88814734]
[1729632043343,22.4823,167.67,167.61,21.88814734]
[1729632043644,11.52383544,167.66,167.61,21.88814734]
[1729632043833,11.52383544,167.65,167.61,21.88814734]
[1729632044037,11.52383544,167.64,167.61,21.88814734]
[1729632044239,4.4322444,167.63,167.61,21.88814734]
[1729632044544,22.4823,167.67,167.61,21.88814734]
[1729632044771,11.52250198,167.66,167.61,21.88814734]
[1729632045041,11.52250198,167.65,167.61,21.88814734]
[1729632045243,11.52250198,167.64,167.61,21.88814734]
[1729632045448,4.43173153,167.63,167.61,21.88814734]
[1729632045634,16.5182,167.67,167.61,21.88814734]
[1729632045838,11.52168914,167.66,167.62,21.88814734]
[1729632046021,11.52168914,167.65,167.63,21.88814734]
[1729632046224,4.4314189,167.64,167.63,21.88814734]
[1729632046445,4.4314189,167.64,167.62,21.88814734]
[1729632046649,4.4314189,167.63,167.62,21.88814734]
[1729632046846,20.0,167.68,167.62,21.88814734]
[1729632047031,11.52148866,167.67,167.62,21.88814734]
[1729632047240,11.52148866,167.66,167.62,21.88814734]
[1729632047551,4.43134179,167.65,167.62,21.88814734]
[1729632047729,20.0,167.68,167.62,21.88814734]
[1729632047929,11.51888855,167.67,167.62,21.88814734]
[1729632048150,11.51888855,167.66,167.62,21.88814734]
[1729632048445,4.43034175,167.65,167.62,21.88814734]
[1729632048638,20.0,167.68,167.62,21.88814734]
[1729632048842,11.51672425,167.67,167.63,21.88814734]
[1729632049046,11.51672425,167.66,167.63,21.88814734]
[1729632049249,4.42950933,167.65,167.63,21.88814734]
[1729632049556,20.0,167.68,167.63,21.88814734]